bitfinex/quotes_ETHUSD_20240823
["timestamp","ask_amount","ask_price","bid_price","bid_amount"]
[1724372616827,0.00081779,2634.5,2634.4,11.93779]
[1724372617019,0.00081779,2634.5,2634.4,13.511178]
[1724372617771,0.00081779,2634.5,2634.4,20.307108]
[1724372617772,7.79e-06,2634.5,2634.4,20.307108]
[1724372619262,0.05,2637.9,2635.2,2.2941]
[1724372619467,0.125341,2638.1,2634.5,2.0307108]
[1724372619468,0.125341,2638.1,2636.8,2.2941]
[1724372619666,0.125341,2638.1,2636.6,6.51595081]
[1724372619667,0.125341,2638.1,2636.9,0.22941]
[1724372619830,0.125341,2638.1,2636.7,3.0]
[1724372620160,0.125341,2638.1,2637.4,3.79161]
[1724372620348,0.125341,2638.1,2637.5,0.55]
[1724372620538,0.125341,2638.1,2637.3,4.34162]
[1724372620737,0.125341,2638.1,2637.5,3.79135]
[1724372620937,2.72329081,2638.0,2637.1,3.79199]
[1724372621160,2.72329081,2637.7,2636.7,3.79248]
[1724372621466,0.28486318,2637.9,2635.9,3.79371]
[1724372621467,2.72329081,2637.6,2636.8,3.79233]
[1724372621649,3.00815399,2637.9,2636.8,3.79241]
[1724372621817,3.00815399,2637.9,2637.1,3.79203]
[1724372621818,2.72329081,2637.9,2637.1,3.79203]
[1724372622221,2.4648,2637.8,2637.1,3.79203]
[1724372622456,2.4648,2637.8,2637.5,3.79146]
[1724372622653,2.4648,2637.8,2637.3,3.79174]
[1724372622873,2.4648,2637.8,2637.2,3.79186]
[1724372622874,0.24648,2637.7,2637.4,4.3416]
[1724372623441,0.24648,2637.7,2637.4,0.55]
[1724372623761,0.24648,2637.7,2637.3,0.55]
[1724372624063,0.03635435,2637.6,2637.2,4.34176]
[1724372624777,0.03635435,2637.6,2637.3,3.79172]
[1724372624982,0.61111779,2637.6,2637.4,0.55]
[1724372625143,0.61111779,2637.6,2637.3,3.79175]
[1724372625338,0.61111779,2637.6,2637.4,0.55]
[1724372625737,0.61111779,2637.6,2637.3,0.55]
[1724372625925,0.38575978,2637.5,2637.3,4.34173]
[1724372626364,0.38575978,2637.5,2637.4,3.79161]
[1724372626539,0.38575978,2637.5,2637.4,4.34161]
[1724372626741,0.38575978,2637.5,2637.4,4.33661]
[1724372627246,0.38575978,2637.5,2637.4,0.55]
[1724372627448,0.38575978,2637.5,2637.0,3.79212]
[1724372627449,0.38575978,2637.5,2637.3,0.55]
[1724372627671,0.38575978,2637.5,2636.6,3.79268]
[1724372627977,0.38575978,2637.5,2636.8,3.79244]
[1724372628180,3.38575978,2637.5,2636.8,3.79244]
[1724372628387,0.64391439,2637.4,2636.8,3.79244]
[1724372628538,0.64391439,2637.4,2636.8,3.79237]
[1724372628878,0.64391439,2637.4,2636.9,3.79224]
[1724372629083,0.64391439,2637.4,2637.0,0.55]
[1724372629839,2.2948,2637.3,2636.4,3.79301]
[1724372630070,0.29387144,2637.2,2636.4,7.58588]
[1724372630297,0.29387144,2637.2,2636.4,3.79294]
[1724372630587,3.29387144,2637.2,2636.3,3.79317]
[1724372631145,3.29387144,2637.2,2636.4,3.79304]
[1724372631374,0.66665178,2637.1,2636.4,3.79304]
[1724372631577,0.66665178,2637.1,2636.6,3.79274]
[1724372631770,0.66665178,2637.1,2636.7,3.79248]
[1724372632164,0.66665178,2637.1,2636.6,3.79274]
[1724372632580,0.66665178,2637.1,2636.7,0.55]
[1724372632804,0.39605232,2637.0,2636.4,3.79298]
[1724372633092,0.39605232,2637.0,2636.7,3.7926]
[1724372633246,0.39605232,2637.0,2636.8,0.55]
[1724372633446,0.39605232,2637.0,2636.5,3.79284]
[1724372633757,0.39605232,2637.0,2636.5,3.79281]
[1724372633952,0.39605232,2637.0,2636.7,3.79253]
[1724372634445,0.39605232,2637.0,2636.8,4.34236]
[1724372634642,0.39605232,2637.0,2636.8,0.55]
[1724372634841,0.39605232,2637.0,2636.3,3.79314]
[1724372634842,0.39605232,2637.0,2636.6,3.79272]
[1724372635145,0.39605232,2637.0,2636.6,3.79267]
[1724372635351,0.39605232,2637.0,2636.6,7.58535]
[1724372635567,0.39605232,2637.0,2636.6,3.79267]
[1724372635948,0.39605232,2637.0,2636.8,3.79242]
[1724372636243,0.39605232,2637.0,2636.9,3.79233]
[1724372636444,2.2948,2637.3,2636.9,0.55]
[1724372636684,2.72329081,2637.9,2637.2,3.79182]
[1724372636685,2.2659,2637.8,2637.2,3.79182]
[1724372636845,2.2659,2637.8,2637.3,4.34166]
[1724372637047,0.49891908,2637.7,2637.3,8.1333]
[1724372637254,0.49891908,2637.7,2637.3,0.55]
[1724372637255,0.03585934,2637.6,2637.3,0.55]
[1724372637468,0.03585934,2637.6,2637.2,0.55]
[1724372637991,0.03585934,2637.6,2637.2,4.34186]
[1724372638191,0.61592718,2637.6,2637.2,4.34186]
[1724372639099,0.61592718,2637.6,2637.2,4.34189]
[1724372639992,0.61592718,2637.6,2637.2,0.55]
[1724372640195,0.61592718,2637.6,2637.4,3.79157]
[1724372640372,0.61592718,2637.6,2637.3,3.79165]
[1724372640373,0.61592718,2637.6,2637.5,3.79146]
[1724372640571,0.61592718,2637.6,2637.3,3.79165]
[1724372640775,0.36159272,2637.5,2637.4,0.55]
[1724372641170,0.36159272,2637.5,2637.2,3.7918]
[1724372641495,0.36159272,2637.5,2636.0,18.96690081]
[1724372641496,0.39745206,2637.5,2637.4,3.79161]
[1724372641698,0.39745206,2637.5,2637.4,8.13322]
[1724372641904,0.39745206,2637.5,2637.4,15.71644]
[1724372641905,0.03585934,2637.5,2637.4,15.71644]
[1724372642111,0.42236399,2638.8,2638.0,11.37225]
[1724372642266,1e-06,2638.1,2638.0,25.22704081]
[1724372642458,1e-06,2638.1,2638.0,27.57324081]
[1724372642800,1e-06,2638.1,2638.0,20.02577408]
[1724372643211,1e-06,2638.1,2638.0,17.26845]
[1724372644244,1e-06,2638.1,2638.0,14.91296428]
[1724372645213,1e-06,2638.1,2638.0,11.90339308]
[1724372645831,1e-06,2638.1,2638.0,8.11264308]
[1724372646196,1e-06,2638.1,2638.0,3.77189308]
[1724372646872,1e-06,2638.1,2638.0,7.56264308]
[1724372647112,1e-06,2638.1,2638.0,3.77189308]
[1724372647311,1e-06,2638.1,2637.8,3.79095]
[1724372647475,1e-06,2638.1,2638.0,7.5815]
[1724372647999,1e-06,2638.1,2638.0,11.37225]
[1724372648818,1e-06,2638.1,2638.0,11.92225]
[1724372649700,1e-06,2638.1,2638.0,8.1315]
[1724372650110,1e-06,2638.1,2638.0,11.92225]
[1724372651330,1e-06,2638.1,2638.0,13.114475]
[1724372652243,0.42236399,2638.8,2638.6,3.78977]
[1724372652543,0.42236399,2638.8,2638.6,7.57957]
[1724372652749,0.42236399,2638.8,2638.6,3.78977]
[1724372653043,0.42236399,2638.8,2638.6,7.57957]
[1724372653351,0.42236399,2638.8,2638.7,3.78974]
[1724372653655,0.42236399,2638.8,2638.7,7.57948]
[1724372654741,0.42236399,2638.8,2638.7,8.12948]
[1724372655246,0.42236399,2638.8,2638.7,12.959098]
[1724372657846,0.42236399,2638.8,2638.5,3.78992]
[1724372658049,0.42236399,2638.8,2638.3,3.79023]
[1724372658246,2.4216,2638.7,2638.3,3.79023]
[1724372658449,2.4216,2638.7,2638.3,7.58046]
[1724372658750,0.2843964,2638.6,2637.9,3.79079]
[1724372659045,0.2843964,2638.6,2638.0,3.79074]
[1724372659205,0.2843964,2638.6,2637.8,3.79095]
[1724372659405,0.2843964,2638.6,2638.0,3.79075]
[1724372659611,0.2843964,2638.6,2638.2,3.79037]
[1724372659821,0.2843964,2638.6,2638.2,7.58075]
[1724372660513,0.2843964,2638.6,2638.2,7.58073]
[1724372660714,0.2843964,2638.6,2638.2,3.79036]
[1724372660944,0.2843964,2638.6,2638.3,3.79023]
[1724372661422,0.2843964,2638.6,2638.1,3.79046]
[1724372661824,0.2843964,2638.6,2637.8,7.58187]
[1724372662026,0.2843964,2638.6,2637.9,3.79087]
[1724372662213,0.2843964,2638.6,2638.1,3.79059]
[1724372662414,0.2843964,2638.6,2638.2,3.79043]
[1724372662850,0.2843964,2638.6,2638.2,3.79036]
[1724372663819,0.2843964,2638.6,2638.3,3.79019]
[1724372664564,0.2843964,2638.6,2637.9,3.79084]
[1724372664749,2.4216,2638.7,2638.5,3.79003]
[1724372665356,2.4216,2638.7,2638.4,7.58015]
[1724372665719,2.4216,2638.7,2638.4,3.79007]
[1724372666151,0.42236399,2638.8,2638.0,0.55]
[1724372666350,0.42236399,2638.8,2638.4,3.79012]
[1724372667070,0.42236399,2638.8,2638.4,3.79009]
[1724372667438,0.42236399,2638.8,2638.5,3.78992]
[1724372667834,0.42236399,2638.8,2638.0,4.34071]
[1724372668035,0.42236399,2638.8,2638.5,3.78994]
[1724372668240,0.42236399,2638.8,2638.3,7.58045]
[1724372668638,0.42236399,2638.8,2638.3,3.79021]
[1724372668867,0.42236399,2638.8,2638.3,7.58043]
[1724372669020,0.42236399,2638.8,2638.3,3.79021]
[1724372669224,2.2736,2638.7,2638.0,3.79072]
[1724372669490,0.2695964,2638.6,2638.0,3.79072]
[1724372669692,0.2695964,2638.6,2638.0,3.79066]
[1724372669887,0.2695964,2638.6,2638.1,3.79052]
[1724372670087,0.2695964,2638.6,2638.2,3.79032]
[1724372670305,0.2695964,2638.6,2638.4,3.79007]
[1724372670605,0.2695964,2638.6,2638.2,3.79037]
[1724372670784,0.42236399,2638.8,2638.5,3.79001]
[1724372670983,0.42236399,2638.8,2638.3,3.79022]
[1724372671184,0.42236399,2638.8,2638.2,3.79041]
[1724372671698,0.42236399,2638.8,2638.1,3.79047]
[1724372671699,0.42236399,2638.8,2638.4,3.79014]
[1724372671922,0.42236399,2638.8,2638.3,7.58052]
[1724372672489,0.42236399,2638.8,2638.3,3.79018]
[1724372672742,0.42236399,2638.8,2638.4,3.79004]
[1724372672945,0.42236399,2638.8,2638.5,3.79001]
[1724372673269,0.76860039,2638.8,2638.6,3.78987]
[1724372673970,0.42236399,2638.8,2638.7,3.78974]
[1724372674168,0.42236399,2638.8,2638.7,8.12948]
[1724372675462,0.42236399,2638.8,2638.7,11.91922]
[1724372676653,0.42236399,2638.8,2638.7,8.12948]
[1724372677963,0.42236399,2638.8,2638.7,11.91922]
[1724372678258,0.42236399,2638.8,2638.7,8.12948]
[1724372679814,0.42236399,2638.8,2638.7,7.57948]
[1724372680527,0.42236399,2638.8,2638.7,3.78974]
[1724372680867,0.42236399,2638.8,2638.7,7.57948]
[1724372681810,2.85096399,2638.8,2638.5,3.78993]
[1724372682066,0.2850964,2638.7,2638.6,3.78988]
[1724372682225,2.85096399,2638.8,2638.7,7.57948]
[1724372682567,0.42236399,2638.8,2638.7,7.57948]
[1724372683846,0.42236399,2638.8,2638.7,3.78974]
[1724372684534,0.42236399,2638.8,2638.4,3.79007]
[1724372684920,0.42236399,2638.8,2638.6,3.78974]
[1724372685862,0.42236399,2638.8,2638.5,3.79002]
[1724372686052,2.4944,2638.7,2638.4,3.79008]
[1724372686239,2.7860764,2638.7,2638.5,3.78989]
[1724372686824,2.7860764,2638.7,2638.4,3.79008]
[1724372687634,2.7860764,2638.7,2638.4,7.58016]
[1724372687835,2.7860764,2638.7,2638.4,3.79008]
[1724372688018,0.32084404,2638.6,2638.3,3.79025]
[1724372688232,0.32084404,2638.6,2638.4,3.79007]
[1724372688463,0.32084404,2638.6,2638.4,7.58015]
[1724372688698,0.42236399,2638.8,2638.7,3.78974]
[1724372689505,0.42236399,2638.8,2638.2,3.79039]
[1724372689506,0.42236399,2638.8,2638.6,7.5796]
[1724372690104,0.42236399,2638.8,2638.7,3.78974]
[1724372691198,0.42236399,2638.8,2638.7,7.57948]
[1724372691380,0.42236399,2638.8,2638.7,8.12948]
[1724372691584,0.42236399,2638.8,2638.7,7.57948]
[1724372692607,0.42236399,2638.8,2638.7,8.12948]
[1724372693368,0.42236399,2638.8,2638.7,11.91922]
[1724372693571,0.42236399,2638.8,2638.7,13.111142]
[1724372693749,0.42236399,2638.8,2638.7,15.544442]
[1724372694312,0.42236399,2638.8,2638.7,8.12948]
[1724372694473,0.42236399,2638.8,2638.7,11.91922]
[1724372695720,0.42236399,2638.8,2638.7,8.12948]
[1724372695955,0.42236399,2638.8,2638.7,11.91922]
[1724372696468,0.42236399,2638.8,2638.7,15.70896]
[1724372696722,0.42236399,2638.8,2638.7,13.733446]
[1724372696921,0.42236399,2638.8,2638.7,17.523186]
[1724372697129,0.42236399,2638.8,2638.7,20.523186]
[1724372697620,3.99e-06,2638.8,2638.7,20.523186]
[1724372697974,3.99e-06,2638.8,2638.7,16.733446]
[1724372698171,3.99e-06,2638.8,2638.7,10.57948]
[1724372698795,3.99e-06,2638.8,2638.7,14.36922]
[1724372699091,3.99e-06,2638.8,2638.7,10.57948]
[1724372699738,3.99e-06,2638.8,2638.7,14.36922]
[1724372699944,3.99e-06,2638.8,2638.7,14.91922]
[1724372700142,3.99e-06,2638.8,2638.7,11.12948]
[1724372700788,3.99e-06,2638.8,2638.7,8.12948]
[1724372701002,3.99e-06,2638.8,2638.7,11.91922]
[1724372701699,3.99e-06,2638.8,2638.7,8.12948]
[1724372702761,3.99e-06,2638.8,2638.7,15.410063]
[1724372703769,3.99e-06,2638.8,2638.7,13.111163]
[1724372703987,3.99e-06,2638.8,2638.7,11.91922]
[1724372704862,3.99e-06,2638.8,2638.7,8.12948]
[1724372706010,3.99e-06,2638.8,2638.7,11.91922]
[1724372708564,3.99e-06,2638.8,2638.7,21.05556]
[1724372709862,3.99e-06,2638.8,2638.7,21.64845581]
[1724372710062,3.99e-06,2638.8,2638.7,17.26582]
[1724372710289,3.99e-06,2638.8,2638.7,14.91922]
[1724372710488,3.99e-06,2638.8,2638.7,10.57948]
[1724372711282,3.99e-06,2638.8,2638.7,7.57948]
[1724372712683,3.99e-06,2638.8,2638.7,11.36922]
[1724372712894,3.99e-06,2638.8,2638.7,13.435143]
[1724372713068,3.99e-06,2638.8,2638.7,8.12948]
[1724372713294,3.99e-06,2638.8,2638.7,11.91922]
[1724372715218,3.99e-06,2638.8,2638.7,7.57948]
[1724372715519,3.99e-06,2638.8,2638.7,11.36922]
[1724372716710,3.99e-06,2638.8,2638.7,17.59636]
[1724372716875,3.99e-06,2638.8,2638.7,16.28105695]
[1724372717076,3.99e-06,2638.8,2638.7,11.91922]
[1724372718410,3.99e-06,2638.8,2638.7,8.12948]
[1724372719098,3.99e-06,2638.8,2638.7,11.91922]
[1724372720268,3.99e-06,2639.0,2638.9,15.1578]
[1724372720471,3.99e-06,2639.0,2638.9,21.60422]
[1724372720707,3.99e-06,2639.0,2638.9,24.60422]
[1724372721113,3.99e-06,2639.0,2638.9,20.81477]
[1724372722912,3.99e-06,2639.0,2638.9,14.91835]
[1724372723071,3.99e-06,2639.0,2638.9,7.5789]
[1724372723714,3.99e-06,2639.0,2638.9,11.36835]
[1724372724501,3.99e-06,2639.0,2638.9,11.91835]
[1724372725712,3.99e-06,2639.0,2638.9,8.1289]
[1724372726295,3.99e-06,2639.0,2638.9,11.91835]
[1724372726949,2.32250399,2639.0,2638.9,8.1289]
[1724372727106,3.99e-06,2639.0,2638.9,7.5789]
[1724372727307,3.99e-06,2639.0,2638.9,11.36835]
[1724372727495,3.99e-06,2639.0,2638.9,12.505185]
[1724372728431,3.99e-06,2639.0,2638.9,11.91835]
[1724372731137,3.99e-06,2639.0,2638.9,14.91835]
[1724372731537,3.99e-06,2639.0,2638.9,21.0069]
[1724372733440,3.99e-06,2639.0,2638.9,17.21745]
[1724372734256,3.99e-06,2639.0,2638.9,14.91835]
[1724372734413,3.99e-06,2639.0,2638.9,7.5789]
[1724372737137,3.99e-06,2639.0,2638.9,8.1289]
[1724372737690,3.99e-06,2639.0,2638.9,11.91835]
[1724372738342,3.99e-06,2639.0,2638.9,13.489155]
[1724372738561,3.99e-06,2639.0,2638.9,17.278605]
[1724372738880,3.99e-06,2639.0,2638.9,13.489155]
[1724372739067,3.99e-06,2639.0,2638.9,11.91835]
[1724372742942,3.99e-06,2639.0,2638.9,8.1289]
[1724372743622,3.99e-06,2639.0,2638.9,11.91835]
[1724372744921,3.99e-06,2639.0,2638.9,8.1289]
[1724372745136,3.99e-06,2639.0,2638.9,11.91835]
[1724372745646,3.99e-06,2639.0,2638.9,8.1289]
[1724372747917,3.99e-06,2639.0,2638.9,11.91835]
[1724372750028,3.99e-06,2639.0,2638.9,22.72909]
[1724372750886,3.99e-06,2639.0,2638.9,16.48914]
[1724372751088,3.99e-06,2639.0,2638.9,14.91835]
[1724372754090,3.99e-06,2639.0,2638.9,18.7078]
[1724372760608,3.99e-06,2639.0,2638.9,14.91835]
[1724372762940,3.99e-06,2639.0,2638.9,20.9788]
[1724372764157,3.99e-06,2639.0,2638.9,29.28434819]
[1724372764464,3.99e-06,2639.0,2638.9,33.21678886]
[1724372764914,3.99e-06,2639.0,2638.9,25.42433886]
[1724372765456,3.99e-06,2639.0,2638.9,29.21378886]
[1724372765666,3.99e-06,2639.0,2638.9,25.42433886]
[1724372765967,3.99e-06,2639.0,2638.9,29.21378886]
[1724372766737,3.99e-06,2639.0,2638.9,33.21678886]
[1724372767058,3.99e-06,2639.0,2638.9,37.26931043]
[1724372767419,3.99e-06,2639.0,2638.9,37.26934316]
[1724372767623,3.99e-06,2639.0,2638.9,36.51057174]
[1724372767825,3.99e-06,2639.0,2638.9,37.26932368]
[1724372769545,3.99e-06,2639.0,2638.9,56.70932368]
[1724372770423,3.99e-06,2639.9,2639.8,15.15264]
[1724372770752,3.99e-06,2639.9,2639.8,17.46939473]
[1724372770949,3.99e-06,2639.9,2639.8,11.12632]
[1724372771277,3.99e-06,2639.9,2639.8,3.78816]
[1724372771583,2.33160399,2639.9,2639.8,3.78816]
[1724372771924,2.33160399,2639.9,2639.7,7.57652]
[1724372772145,2.33160399,2639.9,2638.7,23.9398183]
[1724372772146,2.33160399,2639.9,2639.4,3.78866]
[1724372772488,2.3316,2639.7,2639.3,3.78874]
[1724372772795,2.3316,2639.3,2637.5,3.79141]
[1724372772992,3.91315202,2639.6,2638.5,3.79003]
[1724372772993,2.3316,2638.6,2638.5,3.79003]
[1724372773522,2.3316,2638.6,2638.5,7.58006]
[1724372773782,2.3316,2638.6,2638.5,3.79003]
[1724372774340,2.3316,2638.6,2638.4,3.79016]
[1724372774983,2.3316,2638.6,2638.4,7.58023]
[1724372775187,2.3316,2638.6,2638.4,3.79007]
[1724372775488,2.3316,2638.6,2638.2,3.79042]
[1724372775821,2.3316,2638.6,2638.2,3.79035]
[1724372776083,2.3316,2638.6,2638.3,3.7903]
[1724372776385,0.50447877,2638.5,2638.4,3.79016]
[1724372776928,2.3316,2638.6,2638.5,3.79003]
[1724372777375,2.3316,2638.6,2638.5,7.58006]
[1724372778975,2.3316,2638.6,2638.0,3.79067]
[1724372778976,2.4806,2639.2,2639.0,3.78929]
[1724372779181,2.4806,2639.2,2639.1,3.78917]
[1724372779343,2.4806,2639.2,2639.0,3.78929]
[1724372779691,0.51937877,2639.1,2639.0,3.78929]
[1724372780546,0.51937877,2639.1,2638.9,3.78942]
[1724372781087,0.51937877,2639.1,2638.9,7.57878]
[1724372781436,0.51937877,2639.1,2638.9,3.78936]
[1724372781638,0.51937877,2639.1,2638.8,3.78955]
[1724372781844,0.29999788,2639.0,2638.8,3.78955]
[1724372782764,0.29999788,2639.0,2638.7,3.78971]
[1724372783005,2.2597,2638.9,2638.7,7.57932]
[1724372783212,2.2597,2638.9,2638.6,3.78984]
[1724372783373,2.2597,2638.9,2638.7,3.7897]
[1724372784655,2.2597,2638.9,2638.6,3.78984]
[1724372784919,2.2597,2638.9,2638.6,3.78975]
[1724372785206,2.48567,2638.9,2638.6,3.78982]
[1724372785916,2.48567,2638.9,2638.7,3.7897]
[1724372786416,2.48567,2638.9,2638.6,3.78982]
[1724372786417,2.2597,2638.9,2638.8,7.5792]
[1724372791425,2.286,2639.2,2639.0,3.78919]
[1724372791922,2.286,2639.2,2639.1,3.78917]
[1724372792086,2.78591877,2639.2,2639.1,3.78917]
[1724372792626,2.78591877,2639.2,2639.0,3.78919]
[1724372792990,2.78591877,2639.2,2639.1,3.78917]
[1724372793790,2.78591877,2639.2,2639.0,7.5784]
[1724372794344,2.78591877,2639.2,2639.1,3.78917]
[1724372796444,2.4376,2639.5,2638.4,2.3597]
[1724372796646,1.0,2639.6,2639.5,3.78859]
[1724372796950,1.0,2639.6,2639.5,7.57718]
[1724372799593,1.0,2639.6,2639.5,11.36577]
[1724372799798,1.0,2639.6,2639.5,12.502347]
[1724372800255,1.0,2639.6,2639.5,13.052347]
[1724372800553,1.0,2639.6,2639.5,16.052347]
[1724372801172,3.99e-06,2639.9,2639.8,11.36448]
[1724372801337,3.99e-06,2639.9,2639.8,14.91448]
[1724372801544,3.99e-06,2639.9,2639.8,16.78477]
[1724372810748,3.99e-06,2639.9,2639.8,13.78477]
[1724372813043,3.99e-06,2639.9,2639.8,3.78816]
[1724372813746,3.99e-06,2639.9,2639.7,3.7883]
[1724372813747,2.29670399,2639.9,2639.7,7.57646]
[1724372813953,2.29670399,2639.9,2639.7,3.78823]
[1724372814144,2.29670399,2639.9,2639.8,3.78816]
[1724372815279,2.29670399,2639.9,2639.8,7.57632]
[1724372820350,2.52637439,2639.9,2639.8,3.78816]
[1724372821184,2.52637439,2639.9,2639.8,7.57632]
[1724372821494,2.29670399,2639.9,2639.8,7.57632]
[1724372821893,3.99e-06,2639.9,2639.8,7.57632]
[1724372823094,3.99e-06,2639.9,2639.8,3.78816]
[1724372824205,2.36100399,2639.9,2639.8,3.78816]
[1724372825587,2.36100399,2639.9,2639.8,7.57632]
[1724372825955,2.36100399,2639.9,2639.8,3.78816]
[1724372826160,2.36100399,2639.9,2639.8,7.57632]
[1724372826378,3.99e-06,2639.9,2639.8,7.57632]
[1724372826930,3.99e-06,2639.9,2639.8,11.36448]
[1724372827123,3.99e-06,2639.9,2639.8,12.50850347]
[1724372827578,3.99e-06,2639.9,2639.8,8.72034347]
[1724372827975,3.99e-06,2639.9,2639.8,12.50850347]
[1724372828538,3.99e-06,2639.9,2639.8,13.05850347]
[1724372829307,3.99e-06,2639.9,2639.8,16.84666347]
[1724372829511,3.99e-06,2639.9,2639.8,19.09936347]
[1724372831921,3.99e-06,2639.9,2639.8,22.09936347]
[1724372833225,3.99e-06,2639.9,2639.8,23.09936347]
[1724372833532,3.99e-06,2639.9,2639.8,26.88752347]
[1724372834981,0.02,2640.3,2640.2,17.40306]
[1724372835187,0.02,2640.3,2640.2,22.693366]
[1724372835383,1e-05,2640.5,2640.4,15.1492]
[1724372835601,0.130341,2640.7,2640.4,15.1492]
[1724372835602,0.125341,2643.3,2642.1,2.2527]
[1724372835831,0.125341,2643.3,2643.2,3.78329]
[1724372836199,0.125341,2643.3,2643.2,7.56658]
[1724372836398,0.16112048,2643.3,2643.2,7.56658]
[1724372836611,0.125341,2643.3,2643.2,3.78329]
[1724372836811,0.125341,2643.3,2642.6,3.78406]
[1724372837037,0.125341,2643.3,2643.2,3.78329]
[1724372837228,0.03764123,2643.2,2643.1,3.78343]
[1724372837568,0.125341,2643.3,2643.2,7.56658]
[1724372837831,0.125341,2643.3,2642.8,7.56755]
[1724372838148,0.125341,2643.3,2643.2,7.56658]
[1724372838283,0.125341,2643.3,2643.2,8.11658]
[1724372838600,0.125341,2643.3,2643.2,7.56658]
[1724372838987,1e-06,2643.3,2643.2,17.38586]
[1724372839216,1e-06,2643.3,2643.2,20.93586]
[1724372839430,1e-06,2643.3,2643.2,23.029446]
[1724372839787,1e-06,2643.3,2643.2,19.246156]
[1724372840547,1e-06,2643.3,2643.2,14.89987]
[1724372840692,1e-06,2643.3,2643.2,10.56658]
[1724372840889,1e-06,2643.3,2643.2,7.56658]
[1724372843745,1e-06,2643.3,2643.2,11.34987]
[1724372844252,1e-06,2643.3,2643.2,7.56658]
[1724372845108,0.03450155,2643.3,2643.2,3.78329]
[1724372845849,0.03450155,2643.3,2643.1,3.78342]
[1724372846009,0.03450155,2643.3,2643.1,3.78334]
[1724372846211,1e-06,2643.3,2643.2,3.78329]
[1724372846913,1e-06,2643.3,2643.2,7.56658]
[1724372847849,1e-06,2643.3,2643.2,12.484882]
[1724372848048,1e-06,2643.3,2643.2,20.601462]
[1724372848232,1e-06,2643.3,2643.2,23.601462]
[1724372849254,1e-06,2643.3,2643.2,19.818172]
[1724372849544,1e-06,2643.3,2643.2,11.34987]
[1724372850169,1e-06,2643.3,2643.2,7.56658]
[1724372850756,0.03405158,2643.3,2643.2,7.56658]
[1724372851177,0.03405158,2643.3,2643.2,3.78329]
[1724372852243,0.03405158,2643.3,2643.2,7.56658]
[1724372852447,0.03405158,2643.3,2643.2,11.34987]
[1724372852683,0.03405158,2643.3,2643.2,12.863209]
[1724372852993,1e-06,2643.3,2643.2,12.863209]
[1724372853976,1e-06,2643.3,2643.2,13.413209]
[1724372854172,1e-06,2643.3,2643.2,11.89987]
[1724372855446,1e-06,2643.3,2643.2,7.56658]
[1724372857850,1e-06,2643.3,2643.2,3.78329]
[1724372859096,1e-06,2643.3,2643.0,3.78345]
[1724372859294,1e-06,2643.3,2643.1,3.78335]
[1724372859997,1e-06,2643.3,2643.0,7.56692]
[1724372860216,1e-06,2643.3,2643.0,3.78345]
[1724372861514,2.3146,2643.2,2643.0,3.78345]
[1724372861798,0.2314601,2643.1,2643.0,3.78357]
[1724372862114,0.2314601,2643.1,2642.9,3.78371]
[1724372862315,0.2314601,2643.1,2643.0,3.78357]
[1724372866174,0.2314601,2643.1,2642.9,3.78363]
[1724372866668,1.2314601,2643.1,2642.9,3.78363]
[1724372866876,1.2314601,2643.1,2643.0,3.78357]
[1724372867378,1.2314601,2643.1,2642.9,3.78363]
[1724372867681,1.2314601,2643.1,2642.7,7.56783]
[1724372868021,4.83849594,2643.1,2641.9,2.3614]
[1724372868285,2.4393,2643.0,2642.3,3.78449]
[1724372868421,3.60703584,2642.7,2642.3,3.78449]
[1724372868621,3.60703584,2642.7,2642.4,3.78434]
[1724372869084,2.3703,2642.6,2642.3,3.78449]
[1724372870295,2.3703,2642.6,2642.4,3.78433]
[1724372870427,2.3748,2642.9,2642.6,3.78412]
[1724372870625,2.57072397,2642.9,2642.7,3.78397]
[1724372871079,2.57072397,2642.9,2642.5,3.78424]
[1724372871542,2.57072397,2642.9,2642.3,3.78449]
[1724372871880,2.57072397,2642.9,2642.5,7.56839]
[1724372872346,2.57072397,2642.9,2642.6,3.78401]
[1724372872878,2.57072397,2642.9,2642.7,3.78399]
[1724372873376,1.2314601,2643.1,2642.1,6.13858]
[1724372873377,1.2314601,2643.1,2642.8,3.78386]
[1724372873745,1.2314601,2643.1,2642.6,3.78402]
[1724372873964,1.2314601,2643.1,2642.7,3.78392]
[1724372874555,2.70663918,2643.0,2642.7,3.78392]
[1724372875149,2.70663918,2643.0,2642.7,3.78391]
[1724372875663,2.70663918,2643.0,2642.5,3.78427]
[1724372875664,2.70663918,2643.0,2642.6,3.78404]
[1724372876025,3.3091831,2643.0,2642.4,3.7844]
[1724372876599,3.3091831,2643.0,2641.7,3.0]
[1724372876600,2.70663918,2642.7,2642.1,3.78483]
[1724372877102,2.70663918,2642.7,2642.3,3.78448]
[1724372877302,2.70663918,2642.7,2642.3,7.56896]
[1724372877512,2.70663918,2642.7,2642.3,3.78448]
[1724372878510,3.2188831,2642.7,2642.2,3.78471]
[1724372878684,2.3224,2642.3,2641.9,3.78507]
[1724372878848,2.3224,2642.3,2642.0,3.78489]
[1724372879211,2.3224,2642.3,2642.0,7.56981]
[1724372879498,2.3224,2642.3,2642.0,7.56982]
[1724372880209,2.3224,2642.3,2642.0,3.78489]
[1724372880410,2.82530392,2642.3,2641.8,3.7852]
[1724372880711,2.70663918,2642.1,2641.8,7.57041]
[1724372880895,2.70663918,2642.1,2641.8,3.7852]
[1724372882506,2.3224,2642.3,2642.0,3.78501]
[1724372882825,2.3224,2642.3,2642.2,3.78472]
[1724372883160,2.3224,2642.3,2642.0,3.78501]
[1724372883366,2.82530392,2642.3,2641.8,3.78518]
[1724372883599,2.70663918,2642.1,2641.8,3.78518]
[1724372884321,2.70663918,2642.1,2641.6,3.78548]
[1724372885387,2.70663918,2642.1,2641.6,7.57096]
[1724372885610,2.70663918,2642.1,2641.6,3.78548]
[1724372885758,2.70663918,2642.1,2641.7,3.78543]
[1724372885960,2.70663918,2642.1,2641.6,3.78548]
[1724372886416,2.70663918,2642.1,2641.8,3.78528]
[1724372886763,2.70663918,2642.1,2641.8,3.78522]
[1724372886964,2.3224,2642.3,2642.0,3.78501]
[1724372887203,2.3224,2642.3,2642.1,3.78476]
[1724372887895,2.3224,2642.3,2642.0,7.57002]
[1724372888097,2.3224,2642.3,2642.0,3.78501]
[1724372890117,2.82530392,2642.3,2641.8,3.78519]